[Event "Titled Tuesday Blitz January 03 Late 2023"]
[White "Aradhya, Garg"]
[Black "Melkumyan, Hrant"]
[WhiteFideId "25006746"]
[BlackFideId "13302485"]
[WhiteElo "2284"]
[BlackElo "2645"]
[Result "1-0"]
[Round "09"]
[TimeControl "180+2"]
[Date "2023.01.03"]
[WhiteClock "0:00:07"]
[BlackClock "0:00:03"]

1. d4 {[%clk 0:03:00]}  Nf6 {[%clk 0:02:50]} 2. Nf3 {[%clk 0:03:01]}  g6 {[%clk 0:02:50]} 3. g3 {[%clk 0:03:01]}  b6 {[%clk 0:02:48]} 4. Bg2 {[%clk 0:03:00]}  Bb7 {[%clk 0:02:48]} 5. O-O {[%clk 0:03:01]}  c5 {[%clk 0:02:48]} 6. b3 {[%clk 0:02:52]}  cxd4 {[%clk 0:02:46]} 7. Bb2 {[%clk 0:02:51]}  Bg7 {[%clk 0:02:40]} 8. Nxd4 {[%clk 0:02:48]}  Bxg2 {[%clk 0:02:39]} 9. Kxg2 {[%clk 0:02:49]}  d5 {[%clk 0:02:40]} 10. Nd2 {[%clk 0:02:43]}  O-O {[%clk 0:02:40]} 11. c4 {[%clk 0:02:43]}  e5 {[%clk 0:02:36]} 12. N4f3 {[%clk 0:02:42]}  e4 {[%clk 0:02:36]} 13. Ne5 {[%clk 0:02:22]}  d4 {[%clk 0:02:32]} 14. e3 {[%clk 0:02:12]}  d3 {[%clk 0:02:24]} 15. f3 {[%clk 0:02:11]}  Re8 {[%clk 0:02:17]} 16. fxe4 {[%clk 0:02:04]}  Nbd7 {[%clk 0:02:07]} 17. Nc6 {[%clk 0:01:40]}  Qc7 {[%clk 0:02:03]} 18. Nb4 {[%clk 0:01:41]}  Qd6 {[%clk 0:01:44]} 19. a3 {[%clk 0:01:11]}  a5 {[%clk 0:01:35]} 20. Na2 {[%clk 0:01:11]}  Nc5 {[%clk 0:01:25]} 21. e5 {[%clk 0:01:08]}  Rxe5 {[%clk 0:01:25]} 22. Bxe5 {[%clk 0:01:06]}  Qxe5 {[%clk 0:01:26]} 23. Nf3 {[%clk 0:01:05]}  Qe8 {[%clk 0:00:57]} 24. Nc3 {[%clk 0:00:54]}  Ng4 {[%clk 0:00:50]} 25. Nd5 {[%clk 0:00:53]}  Rd8 {[%clk 0:00:36]} 26. Re1 {[%clk 0:00:44]}  Bxa1 {[%clk 0:00:21]} 27. Qxa1 {[%clk 0:00:43]}  Nxb3 {[%clk 0:00:22]} 28. Qc3 {[%clk 0:00:33]}  Nc5 {[%clk 0:00:22]} 29. h3 {[%clk 0:00:33]}  Rxd5 {[%clk 0:00:20]} 30. cxd5 {[%clk 0:00:29]}  Nxe3+ {[%clk 0:00:20]} 31. Kh2 {[%clk 0:00:19]}  Qe4 {[%clk 0:00:20]} 32. Qd2 {[%clk 0:00:14]}  Qxf3 {[%clk 0:00:20]} 33. Rxe3 {[%clk 0:00:11]}  Qxd5 {[%clk 0:00:20]} 34. Re8+ {[%clk 0:00:11]}  Kg7 {[%clk 0:00:20]} 35. Qc3+ {[%clk 0:00:12]}  f6 {[%clk 0:00:20]} 36. Re7+ {[%clk 0:00:11]}  Kh6 {[%clk 0:00:17]} 37. Qxf6 {[%clk 0:00:10]}  Qa2+ {[%clk 0:00:12]} 38. Kg1 {[%clk 0:00:09]}  Qb1+ {[%clk 0:00:12]} 39. Kg2 {[%clk 0:00:09]}  Qc2+ {[%clk 0:00:13]} 40. Kg1 {[%clk 0:00:09]}  Qd1+ {[%clk 0:00:13]} 41. Kg2 {[%clk 0:00:09]}  Qd2+ {[%clk 0:00:11]} 42. Kg1 {[%clk 0:00:08]}  Qc1+ {[%clk 0:00:11]} 43. Kg2 {[%clk 0:00:08]}  Qc2+ {[%clk 0:00:06]} 44. Kg1 {[%clk 0:00:08]}  Qd1+ {[%clk 0:00:05]} 45. Kg2 {[%clk 0:00:08]}  Qd2+ {[%clk 0:00:03]} 46. Kg1 {[%clk 0:00:08]}  Ne4 {[%clk 0:00:03]} 47. Qh4# {[%clk 0:00:07]} 1-0


[Site "https://www.chess.com"]

[Event "Titled Tuesday Blitz January 03 Late 2023"]
[White "Kamsky, Gata"]
[Black "Nasuta, Grzegorz"]
[WhiteFideId "2000024"]
[BlackFideId "1141686"]
[WhiteElo "2665"]
[BlackElo "2552"]
[Result "1/2-1/2"]
[Round "09"]
[TimeControl "180+2"]
[Date "2023.01.03"]
[WhiteClock "0:00:07"]
[BlackClock "0:00:05"]

1. e4 {[%clk 0:03:00]}  c5 {[%clk 0:02:56]} 2. Nc3 {[%clk 0:02:55]}  a6 {[%clk 0:02:54]} 3. f4 {[%clk 0:02:46]}  b5 {[%clk 0:02:52]} 4. Nf3 {[%clk 0:02:44]}  Bb7 {[%clk 0:02:52]} 5. d3 {[%clk 0:02:43]}  e6 {[%clk 0:02:52]} 6. Qe2 {[%clk 0:02:42]}  Nc6 {[%clk 0:02:50]} 7. Qf2 {[%clk 0:02:37]}  d5 {[%clk 0:02:46]} 8. e5 {[%clk 0:01:56]}  Nge7 {[%clk 0:02:40]} 9. g3 {[%clk 0:01:54]}  Nf5 {[%clk 0:02:37]} 10. Bg2 {[%clk 0:01:54]}  h5 {[%clk 0:02:37]} 11. Ne2 {[%clk 0:01:50]}  Be7 {[%clk 0:02:33]} 12. O-O {[%clk 0:01:48]}  Qc7 {[%clk 0:02:19]} 13. Bd2 {[%clk 0:01:45]}  d4 {[%clk 0:02:15]} 14. h3 {[%clk 0:01:33]}  Rd8 {[%clk 0:02:06]} 15. Rfe1 {[%clk 0:01:29]}  c4 {[%clk 0:01:53]} 16. a3 {[%clk 0:01:20]}  Qb6 {[%clk 0:01:42]} 17. Kh1 {[%clk 0:01:13]}  Ne3 {[%clk 0:01:24]} 18. Bxe3 {[%clk 0:00:58]}  dxe3 {[%clk 0:01:25]} 19. Qf1 {[%clk 0:00:50]}  cxd3 {[%clk 0:01:24]} 20. cxd3 {[%clk 0:00:50]}  Rxd3 {[%clk 0:01:19]} 21. Nc3 {[%clk 0:00:47]}  Rd8 {[%clk 0:01:17]} 22. Qe2 {[%clk 0:00:44]}  O-O {[%clk 0:01:09]} 23. Qxe3 {[%clk 0:00:42]}  Bc5 {[%clk 0:01:09]} 24. Qe2 {[%clk 0:00:41]}  Bf2 {[%clk 0:00:59]} 25. Rf1 {[%clk 0:00:37]}  Bxg3 {[%clk 0:00:52]} 26. Ng5 {[%clk 0:00:36]}  g6 {[%clk 0:00:53]} 27. Nce4 {[%clk 0:00:34]}  Nd4 {[%clk 0:00:41]} 28. Qe3 {[%clk 0:00:33]}  Bh4 {[%clk 0:00:37]} 29. Rad1 {[%clk 0:00:31]}  Bxg5 {[%clk 0:00:21]} 30. fxg5 {[%clk 0:00:25]}  Bxe4 {[%clk 0:00:20]} 31. Bxe4 {[%clk 0:00:23]}  Qc5 {[%clk 0:00:21]} 32. Bg2 {[%clk 0:00:19]}  Qc4 {[%clk 0:00:20]} 33. Qd3 {[%clk 0:00:08]}  Qxd3 {[%clk 0:00:18]} 34. Rxd3 {[%clk 0:00:08]}  Nf5 {[%clk 0:00:18]} 35. Rfd1 {[%clk 0:00:07]}  Rxd3 {[%clk 0:00:17]} 36. Rxd3 {[%clk 0:00:07]}  Rc8 {[%clk 0:00:18]} 37. b4 {[%clk 0:00:06]}  h4 {[%clk 0:00:17]} 38. Bb7 {[%clk 0:00:06]}  Rc1+ {[%clk 0:00:14]} 39. Kg2 {[%clk 0:00:06]}  Rc2+ {[%clk 0:00:12]} 40. Kg1 {[%clk 0:00:06]}  Rc1+ {[%clk 0:00:09]} 41. Kg2 {[%clk 0:00:06]}  Rc2+ {[%clk 0:00:09]} 42. Kg1 {[%clk 0:00:06]}  Rc1+ {[%clk 0:00:05]} 43. Kg2 {[%clk 0:00:07]} 1/2-1/2


[Site "https://www.chess.com"]

[Event "Titled Tuesday Blitz January 03 Late 2023"]
[White "Kravtsiv, Martyn"]
[Black "Kuzmicz, Krystian"]
[WhiteFideId "14113147"]
[BlackFideId "1119125"]
[WhiteElo "2598"]
[BlackElo "2466"]
[Result "1-0"]
[Round "09"]
[TimeControl "180+2"]
[Date "2023.01.03"]
[WhiteClock "0:00:07"]
[BlackClock "0:00:10"]

1. e4 {[%clk 0:03:00]}  c5 {[%clk 0:02:59]} 2. Nf3 {[%clk 0:03:01]}  e6 {[%clk 0:02:59]} 3. d4 {[%clk 0:03:00]}  cxd4 {[%clk 0:03:00]} 4. Nxd4 {[%clk 0:03:00]}  Nf6 {[%clk 0:03:01]} 5. Nc3 {[%clk 0:03:00]}  Nc6 {[%clk 0:03:01]} 6. Ndb5 {[%clk 0:02:58]}  Bc5 {[%clk 0:03:01]} 7. Bf4 {[%clk 0:02:57]}  O-O {[%clk 0:03:00]} 8. Bc7 {[%clk 0:02:57]}  Qe7 {[%clk 0:03:00]} 9. Bd6 {[%clk 0:02:58]}  Bxd6 {[%clk 0:03:01]} 10. Qxd6 {[%clk 0:02:57]}  Qd8 {[%clk 0:03:01]} 11. Nc7 {[%clk 0:02:57]}  Rb8 {[%clk 0:03:01]} 12. Be2 {[%clk 0:02:46]}  b5 {[%clk 0:03:01]} 13. N7xb5 {[%clk 0:02:30]}  a6 {[%clk 0:02:47]} 14. Nd4 {[%clk 0:02:24]}  Nxd4 {[%clk 0:02:45]} 15. Qxd4 {[%clk 0:02:16]}  Rxb2 {[%clk 0:02:45]} 16. e5 {[%clk 0:02:15]}  Qa5 {[%clk 0:02:21]} 17. exf6 {[%clk 0:00:49]}  Rxc2 {[%clk 0:02:20]} 18. fxg7 {[%clk 0:00:49]}  Re8 {[%clk 0:02:20]} 19. O-O {[%clk 0:00:49]}  Qxc3 {[%clk 0:02:18]} 20. Qxc3 {[%clk 0:00:46]}  Rxc3 {[%clk 0:02:18]} 21. Rfc1 {[%clk 0:00:47]}  Rxc1+ {[%clk 0:02:08]} 22. Rxc1 {[%clk 0:00:48]}  Kxg7 {[%clk 0:02:07]} 23. Rc7 {[%clk 0:00:48]}  Kf6 {[%clk 0:02:03]} 24. g3 {[%clk 0:00:43]}  d5 {[%clk 0:01:36]} 25. Bh5 {[%clk 0:00:35]}  Rf8 {[%clk 0:01:32]} 26. Bxf7 {[%clk 0:00:33]}  Rxf7 {[%clk 0:01:31]} 27. Rxc8 {[%clk 0:00:32]}  Ke5 {[%clk 0:01:19]} 28. Rc6 {[%clk 0:00:25]}  Ra7 {[%clk 0:00:54]} 29. f4+ {[%clk 0:00:20]}  Kd4 {[%clk 0:00:54]} 30. Rxe6 {[%clk 0:00:19]}  Kd3 {[%clk 0:00:53]} 31. f5 {[%clk 0:00:16]}  d4 {[%clk 0:00:51]} 32. f6 {[%clk 0:00:16]}  Kc2 {[%clk 0:00:46]} 33. Re7 {[%clk 0:00:15]}  Ra8 {[%clk 0:00:47]} 34. g4 {[%clk 0:00:13]}  d3 {[%clk 0:00:46]} 35. Rc7+ {[%clk 0:00:13]}  Kb2 {[%clk 0:00:45]} 36. Rd7 {[%clk 0:00:13]}  Kc2 {[%clk 0:00:45]} 37. g5 {[%clk 0:00:12]}  d2 {[%clk 0:00:42]} 38. Kf2 {[%clk 0:00:12]}  Rg8 {[%clk 0:00:16]} 39. h4 {[%clk 0:00:11]}  h6 {[%clk 0:00:12]} 40. f7 {[%clk 0:00:09]}  Rg7 {[%clk 0:00:10]} 41. Rxd2+ {[%clk 0:00:07]} 1-0


[Site "https://www.chess.com"]

[Event "Titled Tuesday Blitz January 03 Late 2023"]
[White "Mardov, Dimitar"]
[Black "Chen, Justin"]
[WhiteFideId "30919495"]
[BlackFideId "2098199"]
[WhiteElo "2456"]
[BlackElo "2333"]
[Result "0-1"]
[Round "09"]
[TimeControl "180+2"]
[Date "2023.01.03"]
[WhiteClock "0:00:04"]
[BlackClock "0:00:07"]

1. d4 {[%clk 0:03:00]}  d5 {[%clk 0:02:56]} 2. c4 {[%clk 0:03:00]}  dxc4 {[%clk 0:02:57]} 3. e3 {[%clk 0:03:00]}  Nf6 {[%clk 0:02:56]} 4. Nf3 {[%clk 0:02:59]}  e6 {[%clk 0:02:51]} 5. Bxc4 {[%clk 0:02:59]}  a6 {[%clk 0:02:49]} 6. a4 {[%clk 0:02:57]}  c5 {[%clk 0:02:47]} 7. Nc3 {[%clk 0:02:58]}  Nc6 {[%clk 0:02:36]} 8. O-O {[%clk 0:02:57]}  cxd4 {[%clk 0:02:33]} 9. exd4 {[%clk 0:02:58]}  Nb4 {[%clk 0:02:33]} 10. Bg5 {[%clk 0:02:56]}  Be7 {[%clk 0:02:33]} 11. Ne5 {[%clk 0:02:52]}  O-O {[%clk 0:02:30]} 12. Rc1 {[%clk 0:02:28]}  Bd7 {[%clk 0:02:29]} 13. Qf3 {[%clk 0:02:25]}  Bc6 {[%clk 0:02:22]} 14. Nxc6 {[%clk 0:02:13]}  Nxc6 {[%clk 0:02:22]} 15. Rcd1 {[%clk 0:02:05]}  Qa5 {[%clk 0:02:01]} 16. Bh4 {[%clk 0:01:53]}  Rfd8 {[%clk 0:01:38]} 17. Qf4 {[%clk 0:01:28]}  Nh5 {[%clk 0:01:18]} 18. Qg4 {[%clk 0:01:24]}  Nf6 {[%clk 0:01:18]} 19. Qf4 {[%clk 0:01:05]}  Nh5 {[%clk 0:01:13]} 20. Qg4 {[%clk 0:00:58]}  Bxh4 {[%clk 0:01:13]} 21. Qxh4 {[%clk 0:00:58]}  Nf6 {[%clk 0:01:14]} 22. Rfe1 {[%clk 0:00:42]}  Qb4 {[%clk 0:01:10]} 23. Bd3 {[%clk 0:00:28]}  Rxd4 {[%clk 0:01:04]} 24. Ne4 {[%clk 0:00:19]}  Nxe4 {[%clk 0:00:48]} 25. Bxe4 {[%clk 0:00:18]}  f5 {[%clk 0:00:46]} 26. Qh5 {[%clk 0:00:01]}  Rxe4 {[%clk 0:00:43]} 27. Rxe4 {[%clk 0:00:01]}  Qxe4 {[%clk 0:00:44]} 28. h3 {[%clk 0:00:01]}  Ne5 {[%clk 0:00:31]} 29. Qg5 {[%clk 0:00:01]}  h6 {[%clk 0:00:31]} 30. Qe7 {[%clk 0:00:01]}  Ng6 {[%clk 0:00:25]} 31. Qc7 {[%clk 0:00:02]}  Qc6 {[%clk 0:00:24]} 32. Qg3 {[%clk 0:00:01]}  Nf8 {[%clk 0:00:20]} 33. Qe5 {[%clk 0:00:02]}  Qe8 {[%clk 0:00:19]} 34. Rd3 {[%clk 0:00:02]}  Rd8 {[%clk 0:00:19]} 35. Rg3 {[%clk 0:00:02]}  Qe7 {[%clk 0:00:17]} 36. Kh2 {[%clk 0:00:01]}  Rd5 {[%clk 0:00:16]} 37. Qc3 {[%clk 0:00:01]}  Rc5 {[%clk 0:00:15]} 38. Qd4 {[%clk 0:00:01]}  Rc7 {[%clk 0:00:15]} 39. f4 {[%clk 0:00:01]}  Rd7 {[%clk 0:00:16]} 40. Qc3 {[%clk 0:00:01]}  Kh7 {[%clk 0:00:16]} 41. Re3 {[%clk 0:00:02]}  Qf7 {[%clk 0:00:15]} 42. Qc4 {[%clk 0:00:01]}  Re7 {[%clk 0:00:16]} 43. Qb4 {[%clk 0:00:02]}  Ng6 {[%clk 0:00:16]} 44. Qc4 {[%clk 0:00:01]}  e5 {[%clk 0:00:16]} 45. Qc5 {[%clk 0:00:01]}  exf4 {[%clk 0:00:15]} 46. Rf3 {[%clk 0:00:01]}  Re4 {[%clk 0:00:14]} 47. Qb6 {[%clk 0:00:01]}  Rxa4 {[%clk 0:00:12]} 48. Rc3 {[%clk 0:00:02]}  Re4 {[%clk 0:00:11]} 49. Rc7 {[%clk 0:00:02]}  Re7 {[%clk 0:00:12]} 50. Rc5 {[%clk 0:00:02]}  Ne5 {[%clk 0:00:11]} 51. Qd6 {[%clk 0:00:02]}  f3 {[%clk 0:00:08]} 52. Rxe5 {[%clk 0:00:02]}  Rxe5 {[%clk 0:00:09]} 53. Qxe5 {[%clk 0:00:03]}  fxg2 {[%clk 0:00:07]} 54. Kxg2 {[%clk 0:00:03]}  Qg6+ {[%clk 0:00:07]} 55. Kh2 {[%clk 0:00:03]}  Qf6 {[%clk 0:00:07]} 56. Qc7 {[%clk 0:00:03]}  Qxb2+ {[%clk 0:00:07]} 57. Kg3 {[%clk 0:00:04]}  Qb3+ {[%clk 0:00:06]} 58. Kh2 {[%clk 0:00:04]}  Qd5 {[%clk 0:00:07]} 59. h4 {[%clk 0:00:04]}  Qe4 {[%clk 0:00:07]} 60. Qd8 {[%clk 0:00:02]}  a5 {[%clk 0:00:05]} 61. Qxa5 {[%clk 0:00:01]}  Qxh4+ {[%clk 0:00:06]} 62. Kg2 {[%clk 0:00:02]}  Qe4+ {[%clk 0:00:06]} 63. Kh2 {[%clk 0:00:02]}  Qg4 {[%clk 0:00:06]} 64. Qb5 {[%clk 0:00:01]}  Qf3 {[%clk 0:00:06]} 65. Qe8 {[%clk 0:00:01]}  Qc6 {[%clk 0:00:05]} 66. Qf7 {[%clk 0:00:01]}  Qc2+ {[%clk 0:00:04]} 67. Kg3 {[%clk 0:00:01]}  b5 {[%clk 0:00:04]} 68. Qd7 {[%clk 0:00:01]}  b4 {[%clk 0:00:04]} 69. Qd5 {[%clk 0:00:01]}  b3 {[%clk 0:00:04]} 70. Kh4 {[%clk 0:00:01]}  Qe4+ {[%clk 0:00:05]} 71. Qxe4 {[%clk 0:00:01]}  fxe4 {[%clk 0:00:06]} 72. Kg4 {[%clk 0:00:01]}  b2 {[%clk 0:00:06]} 73. Kh4 {[%clk 0:00:02]}  b1=Q {[%clk 0:00:07]} 74. Kh5 {[%clk 0:00:03]}  Qg1 {[%clk 0:00:07]} 75. Kh4 {[%clk 0:00:03]}  Qg2 {[%clk 0:00:06]} 76. Kh5 {[%clk 0:00:04]}  Qg5# {[%clk 0:00:07]} 0-1


[Site "https://www.chess.com"]

[Event "Titled Tuesday Blitz January 03 Late 2023"]
[White "Boros, Denes"]
[Black "Papasimakopoulos, Alexandros"]
[WhiteFideId "722340"]
[BlackFideId "4244125"]
[WhiteElo "2406"]
[BlackElo "2401"]
[Result "1-0"]
[Round "09"]
[TimeControl "180+2"]
[Date "2023.01.03"]
[WhiteClock "0:00:09"]
[BlackClock "0:00:04"]

1. d4 {[%clk 0:03:00]}  e6 {[%clk 0:02:58]} 2. Nc3 {[%clk 0:03:01]}  d5 {[%clk 0:02:58]} 3. Nf3 {[%clk 0:03:01]}  Bb4 {[%clk 0:02:58]} 4. Qd3 {[%clk 0:02:59]}  Nf6 {[%clk 0:02:58]} 5. Bg5 {[%clk 0:02:59]}  h6 {[%clk 0:02:57]} 6. Bxf6 {[%clk 0:02:58]}  Qxf6 {[%clk 0:02:58]} 7. e4 {[%clk 0:02:58]}  dxe4 {[%clk 0:02:55]} 8. Qxe4 {[%clk 0:02:59]}  Bxc3+ {[%clk 0:02:48]} 9. bxc3 {[%clk 0:03:00]}  Qf5 {[%clk 0:02:37]} 10. Qe2 {[%clk 0:02:47]}  Nd7 {[%clk 0:02:32]} 11. Qd2 {[%clk 0:02:42]}  Nf6 {[%clk 0:02:19]} 12. Bd3 {[%clk 0:02:41]}  Qa5 {[%clk 0:02:19]} 13. Rb1 {[%clk 0:02:31]}  b6 {[%clk 0:02:17]} 14. O-O {[%clk 0:02:17]}  Ba6 {[%clk 0:02:00]} 15. Ne5 {[%clk 0:02:12]}  Bxd3 {[%clk 0:01:57]} 16. Qxd3 {[%clk 0:02:03]}  O-O {[%clk 0:01:52]} 17. c4 {[%clk 0:02:03]}  Qa4 {[%clk 0:01:40]} 18. f4 {[%clk 0:01:37]}  c5 {[%clk 0:01:33]} 19. c3 {[%clk 0:01:33]}  cxd4 {[%clk 0:01:26]} 20. cxd4 {[%clk 0:01:34]}  Nd7 {[%clk 0:01:26]} 21. Ng4 {[%clk 0:01:29]}  f5 {[%clk 0:01:20]} 22. Ne3 {[%clk 0:01:24]}  Nf6 {[%clk 0:01:20]} 23. Rb5 {[%clk 0:01:09]}  Qxa2 {[%clk 0:01:14]} 24. Re5 {[%clk 0:01:01]}  Rfe8 {[%clk 0:01:13]} 25. d5 {[%clk 0:00:59]}  exd5 {[%clk 0:01:10]} 26. Nxf5 {[%clk 0:00:54]}  Qxc4 {[%clk 0:01:06]} 27. Qg3 {[%clk 0:00:37]}  Qc7 {[%clk 0:01:03]} 28. Nxh6+ {[%clk 0:00:36]}  Kh7 {[%clk 0:01:03]} 29. Nf5 {[%clk 0:00:36]}  a5 {[%clk 0:00:50]} 30. Rfe1 {[%clk 0:00:25]}  a4 {[%clk 0:00:49]} 31. h3 {[%clk 0:00:23]}  Ne4 {[%clk 0:00:40]} 32. Qh4+ {[%clk 0:00:20]}  Kg8 {[%clk 0:00:40]} 33. Ne7+ {[%clk 0:00:21]}  Rxe7 {[%clk 0:00:39]} 34. Rxe7 {[%clk 0:00:22]}  Qc5+ {[%clk 0:00:35]} 35. Kh2 {[%clk 0:00:22]}  Qd6 {[%clk 0:00:28]} 36. Rc1 {[%clk 0:00:18]}  Rf8 {[%clk 0:00:19]} 37. Rcc7 {[%clk 0:00:15]}  Qxf4+ {[%clk 0:00:18]} 38. Qxf4 {[%clk 0:00:16]}  Rxf4 {[%clk 0:00:19]} 39. Rxg7+ {[%clk 0:00:16]}  Kf8 {[%clk 0:00:20]} 40. Ra7 {[%clk 0:00:13]}  Nc5 {[%clk 0:00:18]} 41. Rgc7 {[%clk 0:00:12]}  Re4 {[%clk 0:00:16]} 42. Rc6 {[%clk 0:00:07]}  d4 {[%clk 0:00:13]} 43. Rh6 {[%clk 0:00:06]}  Kg8 {[%clk 0:00:13]} 44. Rg6+ {[%clk 0:00:07]}  Kf8 {[%clk 0:00:13]} 45. Rh6 {[%clk 0:00:07]}  Kg8 {[%clk 0:00:14]} 46. Rxb6 {[%clk 0:00:08]}  Rf4 {[%clk 0:00:11]} 47. Rg6+ {[%clk 0:00:07]}  Kf8 {[%clk 0:00:11]} 48. Rc6 {[%clk 0:00:07]}  Re4 {[%clk 0:00:01]} 49. Rxc5 {[%clk 0:00:06]}  d3 {[%clk 0:00:02]} 50. Rf5+ {[%clk 0:00:06]}  Ke8 {[%clk 0:00:01]} 51. Rb5 {[%clk 0:00:06]}  Rd4 {[%clk 0:00:01]} 52. Rb8+ {[%clk 0:00:06]}  Rd8 {[%clk 0:00:02]} 53. Rxd8+ {[%clk 0:00:06]}  Kxd8 {[%clk 0:00:02]} 54. Rxa4 {[%clk 0:00:07]}  d2 {[%clk 0:00:03]} 55. Rd4+ {[%clk 0:00:08]}  Ke7 {[%clk 0:00:04]} 56. Rxd2 {[%clk 0:00:09]} 1-0


[Site "https://www.chess.com"]

[Event "Titled Tuesday Blitz January 03 Late 2023"]
[White "Borges Feria, Yasel"]
[Black "Jaracz, Pawel"]
[WhiteFideId "3504921"]
[BlackFideId "1102222"]
[WhiteElo "2439"]
[BlackElo "2467"]
[Result "0-1"]
[Round "09"]
[TimeControl "180+2"]
[Date "2023.01.03"]
[WhiteClock "0:00:09"]
[BlackClock "0:00:59"]

1. e4 {[%clk 0:03:00]}  c6 {[%clk 0:02:57]} 2. Nc3 {[%clk 0:03:00]}  d5 {[%clk 0:02:57]} 3. Nf3 {[%clk 0:03:00]}  a6 {[%clk 0:02:57]} 4. d4 {[%clk 0:02:53]}  Bg4 {[%clk 0:02:57]} 5. exd5 {[%clk 0:02:52]}  cxd5 {[%clk 0:02:56]} 6. h3 {[%clk 0:02:52]}  Bxf3 {[%clk 0:02:55]} 7. Qxf3 {[%clk 0:02:53]}  e6 {[%clk 0:02:54]} 8. Ne2 {[%clk 0:02:48]}  Nc6 {[%clk 0:02:52]} 9. c3 {[%clk 0:02:48]}  Bd6 {[%clk 0:02:50]} 10. Bf4 {[%clk 0:02:47]}  Nge7 {[%clk 0:02:49]} 11. Bxd6 {[%clk 0:02:46]}  Qxd6 {[%clk 0:02:49]} 12. Ng3 {[%clk 0:02:45]}  O-O {[%clk 0:02:48]} 13. Bd3 {[%clk 0:01:54]}  b5 {[%clk 0:02:46]} 14. a3 {[%clk 0:01:52]}  Rab8 {[%clk 0:02:45]} 15. O-O {[%clk 0:01:52]}  a5 {[%clk 0:02:42]} 16. b4 {[%clk 0:01:37]}  a4 {[%clk 0:02:36]} 17. Qe2 {[%clk 0:01:37]}  Na7 {[%clk 0:02:35]} 18. f4 {[%clk 0:01:30]}  g6 {[%clk 0:02:32]} 19. Qd2 {[%clk 0:01:30]}  Rfc8 {[%clk 0:02:20]} 20. Ne2 {[%clk 0:01:29]}  Rc7 {[%clk 0:02:09]} 21. Rf3 {[%clk 0:01:27]}  Nac8 {[%clk 0:02:08]} 22. Raf1 {[%clk 0:01:24]}  Qd7 {[%clk 0:02:06]} 23. g4 {[%clk 0:01:18]}  f5 {[%clk 0:02:00]} 24. Re3 {[%clk 0:01:08]}  Nd6 {[%clk 0:02:00]} 25. Ng3 {[%clk 0:01:06]}  Rbc8 {[%clk 0:01:58]} 26. Ne2 {[%clk 0:00:58]}  Ne4 {[%clk 0:01:56]} 27. Bxe4 {[%clk 0:00:58]}  dxe4 {[%clk 0:01:57]} 28. Rg3 {[%clk 0:00:55]}  Nd5 {[%clk 0:01:51]} 29. Kh2 {[%clk 0:00:49]}  Rc4 {[%clk 0:01:45]} 30. Rfg1 {[%clk 0:00:46]}  Qc7 {[%clk 0:01:41]} 31. Rc1 {[%clk 0:00:45]}  Kh8 {[%clk 0:01:28]} 32. Kg2 {[%clk 0:00:43]}  Qc6 {[%clk 0:01:27]} 33. Kh2 {[%clk 0:00:40]}  Nf6 {[%clk 0:01:25]} 34. Qe3 {[%clk 0:00:35]}  Nd5 {[%clk 0:01:23]} 35. Qd2 {[%clk 0:00:34]}  Qc7 {[%clk 0:01:23]} 36. Kg2 {[%clk 0:00:33]}  Rf8 {[%clk 0:01:14]} 37. Rf1 {[%clk 0:00:30]}  Qc6 {[%clk 0:01:11]} 38. Kh2 {[%clk 0:00:27]}  Qc7 {[%clk 0:01:07]} 39. Kg2 {[%clk 0:00:24]}  Rc6 {[%clk 0:01:07]} 40. Kg1 {[%clk 0:00:15]}  Qd6 {[%clk 0:01:07]} 41. Kg2 {[%clk 0:00:15]}  Rc7 {[%clk 0:01:07]} 42. g5 {[%clk 0:00:13]}  h5 {[%clk 0:01:03]} 43. h4 {[%clk 0:00:13]}  Rfc8 {[%clk 0:01:02]} 44. Rc1 {[%clk 0:00:13]}  Nb6 {[%clk 0:01:02]} 45. Qa2 {[%clk 0:00:11]}  Nd5 {[%clk 0:00:59]} 46. Kf2 {[%clk 0:00:09]}  Nxf4 {[%clk 0:00:59]} 0-1


[Site "https://www.chess.com"]

[Event "Titled Tuesday Blitz January 03 Late 2023"]
[White "Ozer, Omer Faruk"]
[Black "Pranav, V"]
[WhiteFideId "6354564"]
[BlackFideId "25060783"]
[WhiteElo "2360"]
[BlackElo "2597"]
[Result "1-0"]
[Round "09"]
[TimeControl "180+2"]
[Date "2023.01.03"]
[WhiteClock "0:00:06"]
[BlackClock "0:01:27"]

1. e4 {[%clk 0:02:07]}  Nc6 {[%clk 0:02:54]} 2. Nf3 {[%clk 0:02:05]}  e5 {[%clk 0:02:53]} 3. Bc4 {[%clk 0:02:05]}  Nf6 {[%clk 0:02:54]} 4. d3 {[%clk 0:02:05]}  h6 {[%clk 0:02:53]} 5. c3 {[%clk 0:02:04]}  d6 {[%clk 0:02:54]} 6. O-O {[%clk 0:02:03]}  g6 {[%clk 0:02:54]} 7. a4 {[%clk 0:02:00]}  Bg7 {[%clk 0:02:54]} 8. a5 {[%clk 0:01:55]}  a6 {[%clk 0:02:54]} 9. Re1 {[%clk 0:01:46]}  O-O {[%clk 0:02:53]} 10. b4 {[%clk 0:01:46]}  Be6 {[%clk 0:02:53]} 11. Nbd2 {[%clk 0:01:45]}  Kh7 {[%clk 0:02:52]} 12. Bb3 {[%clk 0:01:42]}  Nh5 {[%clk 0:02:52]} 13. Bb2 {[%clk 0:01:37]}  Qe8 {[%clk 0:02:51]} 14. Ba4 {[%clk 0:01:25]}  Nf4 {[%clk 0:02:49]} 15. Nf1 {[%clk 0:01:20]}  f5 {[%clk 0:02:49]} 16. exf5 {[%clk 0:01:11]}  gxf5 {[%clk 0:02:50]} 17. Bc1 {[%clk 0:00:56]}  Nh5 {[%clk 0:02:30]} 18. Ng3 {[%clk 0:00:51]}  Nxg3 {[%clk 0:02:27]} 19. hxg3 {[%clk 0:00:52]}  Qf7 {[%clk 0:02:26]} 20. Bc2 {[%clk 0:00:38]}  Rae8 {[%clk 0:02:25]} 21. Rb1 {[%clk 0:00:36]}  d5 {[%clk 0:02:25]} 22. b5 {[%clk 0:00:36]}  axb5 {[%clk 0:02:24]} 23. Rxb5 {[%clk 0:00:36]}  e4 {[%clk 0:02:25]} 24. Nd4 {[%clk 0:00:22]}  Nxd4 {[%clk 0:02:23]} 25. cxd4 {[%clk 0:00:22]}  c6 {[%clk 0:02:24]} 26. Rb1 {[%clk 0:00:20]}  Qg6 {[%clk 0:02:23]} 27. Rxb7 {[%clk 0:00:18]}  Kh8 {[%clk 0:02:22]} 28. Bf4 {[%clk 0:00:16]}  Bf6 {[%clk 0:02:21]} 29. Qd2 {[%clk 0:00:15]}  h5 {[%clk 0:02:20]} 30. Be5 {[%clk 0:00:14]}  Bxe5 {[%clk 0:02:19]} 31. dxe5 {[%clk 0:00:15]}  f4 {[%clk 0:02:20]} 32. gxf4 {[%clk 0:00:15]}  h4 {[%clk 0:02:17]} 33. dxe4 {[%clk 0:00:14]}  Rg8 {[%clk 0:02:14]} 34. f3 {[%clk 0:00:14]}  h3 {[%clk 0:02:09]} 35. f5 {[%clk 0:00:14]}  Qh5 {[%clk 0:02:04]} 36. g4 {[%clk 0:00:14]}  Bc8 {[%clk 0:01:58]} 37. Rc7 {[%clk 0:00:12]}  Qh4 {[%clk 0:01:58]} 38. Qf2 {[%clk 0:00:12]}  Qh6 {[%clk 0:01:54]} 39. e6 {[%clk 0:00:12]}  Rg5 {[%clk 0:01:41]} 40. Qd4+ {[%clk 0:00:12]}  Kg8 {[%clk 0:01:41]} 41. exd5 {[%clk 0:00:11]}  Qh4 {[%clk 0:01:36]} 42. Qf2 {[%clk 0:00:08]}  Qh6 {[%clk 0:01:35]} 43. d6 {[%clk 0:00:07]}  Ba6 {[%clk 0:01:30]} 44. d7 {[%clk 0:00:07]}  h2+ {[%clk 0:01:29]} 45. Qxh2 {[%clk 0:00:07]}  Qh3 {[%clk 0:01:27]} 46. dxe8=Q# {[%clk 0:00:06]} 1-0


[Site "https://www.chess.com"]